fUSD/lending_fUSD_20250123
["ID","MTS","AMOUNT","RATE_DAILY","PERIOD"]
[350128836,1737645051317,-501.65393382,0.00017273,2]
[350128838,1737645051326,-500.69157798,0.00017273,2]
[350128840,1737645051336,-150.0,0.00017273,2]
[350128842,1737645051345,-3909.6324352,0.00017294,2]
[350128844,1737645051354,-1374.9858466,0.00017294,2]
[350128846,1737645051364,-3479.5825863,0.00017294,2]
[350128848,1737645051373,-312.4671282,0.00017294,2]
[350128849,1737645051382,-1031.4948883,0.00017299,5]
[350128851,1737645051391,-500.0,0.00017299,2]
[350128853,1737645051401,-1006.26165683,0.00017299,5]
[350128855,1737645051410,-1706892.14000917,0.000173,5]
[350128872,1737645051549,-500.0,0.00016712,2]
[350128874,1737645051563,-514.14013679,0.000173,5]
[350128876,1737645051575,-4840.5,0.000173,5]
[350128878,1737645051586,-104068.63016111,0.000173,5]
[350128893,1737645052169,-1000.0,0.00016338,2]
[350128894,1737645052180,-500.0,0.00016438,2]
[350128895,1737645052190,-500.0,0.00016438,2]
[350128896,1737645052199,-500.0,0.00016712,2]
[350128897,1737645052209,-500.0,0.00016986,2]
[350128898,1737645052219,-745.02959505,0.0001716,2]
[350128899,1737645052228,-500.0,0.0001726,2]
[350128900,1737645052238,-1053.96538395,0.000173,5]
[350128901,1737645052249,-104999.99999998,0.000173,5]
[350128902,1737645052260,-370.9528323,0.000173,5]
[350128903,1737645052271,-50696.20501285,0.000173,5]
[350128904,1737645052282,-79837.88356,0.000173,5]
[350128905,1737645052299,-1525.18868393,0.000173,5]
[350128906,1737645052317,-1156.30520905,0.000173,5]
[350128907,1737645052336,-577.0999999,0.000173,5]
[350128908,1737645052514,-502.35952506,0.00016438,2]
[350128909,1737645052529,-500.0,0.00016712,2]
[350128910,1737645052546,-225706.40937063,0.000173,5]
[350128911,1737645052562,-2449.12,0.000173,2]
[350128912,1737645052576,-55574.77033235,0.000173,2]
[350128913,1737645052594,-3650.3326623,0.000173,2]
[350128915,1737645052785,-171.97096522,0.00016338,2]
[350128916,1737645052799,-500.0,0.00016438,2]
[350128917,1737645052818,-24.25236665,0.00016986,2]
[350128918,1737645052853,-311.56288,0.00016986,2]
[350128919,1737645052870,-164.18475335,0.00016986,2]
[350128920,1737645052883,-150.0,0.00017002,2]
[350128921,1737645052896,-150.0,0.00017052,2]
[350128922,1737645052909,-150.0,0.00017221,2]
[350128923,1737645052922,-150.0,0.00017234,2]
[350128924,1737645052935,-16506.57395608,0.000173,2]
[350128925,1737645052948,-1377.68137166,0.000173,2]
[350128926,1737645052964,-1245.44462834,0.000173,2]
[350128927,1737645052976,-200.0,0.000173,2]
[350128928,1737645052989,-150.0,0.000173,2]
[350128929,1737645053001,-372.6387,0.000173,2]
[350128930,1737645053015,-150.0,0.00017334,2]
[350128931,1737645053028,-1486.75834485,0.00017342,2]
[350128932,1737645053042,-673.0289804,0.00017372,2]
[350128933,1737645053058,-1196.38051738,0.00017417,2]
[350128934,1737645053073,-1486.75834485,0.00017425,2]
[350128935,1737645053088,-500.0,0.00017434,2]
[350128936,1737645053098,-500.0,0.00017436,2]
[350128937,1737645053107,-1000.0,0.000175,2]
[350128938,1737645053117,-1435.99048418,0.00017507,2]
[350128939,1737645053131,-50.76786067,0.00017507,2]
[350128940,1737645053140,-964.26,0.00017533,2]
[350128941,1737645053150,-849.38,0.00017533,2]
[350128942,1737645053160,-1962.43,0.00017533,2]
[350128943,1737645053170,-500.0,0.00017533,2]
[350128944,1737645053180,-841.35,0.00017533,2]
[350128945,1737645053190,-1238.96,0.00017533,2]
[350128946,1737645053199,-1489.33,0.00017533,2]
[350128947,1737645053210,-500.0,0.00017533,2]
[350128948,1737645053220,-1000.0,0.00017533,2]
[350128949,1737645053229,-1181.81,0.00017533,2]
[350128950,1737645053239,-517.92,0.00017533,2]
[350128951,1737645053249,-1401.97,0.00017533,2]
[350128952,1737645053258,-1626.6,0.00017533,2]
[350128953,1737645053267,-500.0,0.00017534,2]
[350128954,1737645053276,-500.0,0.00017534,2]
[350128955,1737645053285,-500.0,0.00017534,2]
[350128956,1737645053296,-500.0,0.00017534,2]
[350128957,1737645053309,-500.0,0.00017534,2]
[350128958,1737645053318,-500.0,0.00017534,2]
[350128959,1737645053328,-500.0,0.00017534,2]
[350128960,1737645053337,-500.0,0.00017534,2]
[350128961,1737645053347,-500.0,0.00017534,2]
[350128962,1737645053356,-500.0,0.00017534,2]
[350128963,1737645053366,-500.0,0.00017534,2]
[350128964,1737645053375,-500.0,0.00017534,2]
[350128965,1737645053384,-500.0,0.00017534,2]
[350128966,1737645053394,-500.0,0.00017534,2]
[350128967,1737645053683,-500.0,0.00017534,2]
[350128968,1737645053708,-728.78,0.00017534,2]
[350128969,1737645053722,-500.0,0.00017534,2]
[350128970,1737645053731,-500.0,0.00017534,2]
[350128971,1737645053740,-500.0,0.00017534,2]
[350128972,1737645053750,-500.0,0.00017534,2]
[350128973,1737645053760,-500.0,0.00017534,2]
[350128974,1737645053770,-500.0,0.00017534,2]
[350128975,1737645053779,-500.0,0.00017534,2]
[350128976,1737645053789,-561.4,0.00017534,2]
[350128977,1737645053798,-500.0,0.00017534,2]
[350128978,1737645053812,-500.0,0.00017534,2]
[350128979,1737645053822,-500.0,0.00017534,2]
[350128980,1737645053832,-500.0,0.00017534,2]
[350128981,1737645053842,-500.0,0.00017534,2]
[350128982,1737645053853,-770.38,0.00017534,2]
[350128983,1737645053862,-500.0,0.00017534,2]
[350128984,1737645053872,-553.93,0.00017534,2]
[350128985,1737645053881,-816.19,0.00017534,2]
[350128986,1737645053891,-500.0,0.00017534,2]
[350128987,1737645053901,-500.0,0.00017534,2]
[350128988,1737645053910,-500.0,0.00017534,2]
[350128989,1737645053920,-500.0,0.00017534,2]
[350128990,1737645053930,-500.0,0.00017534,2]
[350128991,1737645053941,-500.0,0.00017534,2]
[350128992,1737645053951,-500.0,0.00017534,2]
[350128993,1737645053960,-500.0,0.00017534,2]
[350128994,1737645053970,-368.09912328,0.00017534,2]
[350128995,1737645053979,-500.0,0.00017534,2]
[350128996,1737645053989,-500.0,0.00017534,2]
[350128997,1737645053998,-533.86,0.00017534,2]
[350128998,1737645054007,-500.0,0.00017534,2]
[350128999,1737645054017,-500.0,0.00017534,2]
[350129000,1737645054026,-500.0,0.00017534,2]
[350129001,1737645054036,-500.0,0.00017534,2]
[350129002,1737645054045,-665.01,0.00017534,2]
[350129003,1737645054058,-500.0,0.00017534,2]
[350129004,1737645054068,-591.449939,0.00017534,2]
[350129005,1737645054077,-598.39,0.00017534,2]
[350129006,1737645054089,-500.0,0.00017534,2]
[350129007,1737645054098,-666.93,0.00017534,2]
[350129008,1737645054109,-500.0,0.00017534,2]
[350129009,1737645054120,-665.125062,0.00017534,2]
[350129010,1737645054130,-611.43,0.00017534,2]
[350129011,1737645054140,-500.0,0.00017534,2]
[350129012,1737645054149,-500.0,0.00017534,2]
[350129013,1737645054159,-500.0,0.00017534,2]
[350129014,1737645054168,-500.0,0.00017534,2]
[350129015,1737645054177,-500.0,0.00017534,2]
[350129016,1737645054188,-500.0,0.00017534,2]
[350129017,1737645054198,-500.0,0.00017534,2]
[350129018,1737645054208,-553.55,0.00017534,2]
[350129019,1737645054217,-645.07,0.00017534,2]
[350129020,1737645054227,-500.0,0.00017534,2]
[350129021,1737645054236,-500.0,0.00017534,2]
[350129022,1737645054246,-574.7,0.00017534,2]
[350129023,1737645054255,-500.0,0.00017534,2]
[350129024,1737645054264,-500.0,0.00017534,2]
[350129025,1737645054274,-665.43,0.00017534,2]
[350129026,1737645054284,-500.0,0.00017534,2]
[350129027,1737645054293,-500.0,0.00017534,2]
[350129028,1737645054302,-500.0,0.00017534,2]
[350129029,1737645054315,-643.73,0.00017534,2]
[350129030,1737645054325,-512.19,0.00017534,2]
[350129031,1737645054334,-500.0,0.00017534,2]
[350129032,1737645054344,-661.94,0.00017534,2]
[350129033,1737645054353,-667.89,0.00017534,2]
[350129034,1737645054363,-539.11,0.00017534,2]
[350129035,1737645054372,-624.02,0.00017534,2]
[350129036,1737645054383,-500.0,0.00017534,2]
[350129037,1737645054393,-344.04,0.00017534,2]
[350129038,1737645054403,-500.0,0.00017534,2]
[350129039,1737645054413,-500.0,0.00017534,2]
[350129040,1737645054422,-652.9,0.00017534,2]
[350129041,1737645054432,-566.04,0.00017534,2]
[350129042,1737645054441,-500.0,0.00017534,2]
[350129043,1737645054451,-618.01,0.00017534,2]
[350129044,1737645054460,-607.91,0.00017534,2]
[350129045,1737645054470,-530.48,0.00017534,2]
[350129046,1737645054481,-500.0,0.00017534,2]
[350129047,1737645054491,-500.0,0.00017534,2]
[350129048,1737645054501,-500.0,0.00017534,2]
[350129049,1737645054512,-375.18531227,0.00017534,2]
[350129050,1737645054522,-690.5,0.00017534,2]
[350129051,1737645054532,-731.93,0.00017534,2]
[350129052,1737645054543,-2136.21,0.00017534,2]
[350129053,1737645054553,-500.0,0.00017534,2]
[350129054,1737645054570,-719.7,0.00017534,2]
[350129055,1737645054580,-1077.18,0.00017534,2]
[350129056,1737645054589,-500.0,0.00017534,2]
[350129057,1737645054599,-689.78,0.00017534,2]
[350129058,1737645054609,-500.0,0.00017534,2]
[350129059,1737645054619,-2051.15,0.00017534,2]
[350129060,1737645054628,-500.0,0.00017534,2]
[350129061,1737645054638,-636.7,0.00017534,2]
[350129062,1737645054648,-767.11,0.00017534,2]
[350129063,1737645054657,-1199.19,0.00017534,2]
[350129064,1737645054667,-500.0,0.00017534,2]
[350129065,1737645054677,-500.0,0.00017534,2]
[350129066,1737645054686,-500.0,0.00017534,2]
[350129067,1737645054696,-2308.51,0.00017534,2]
[350129068,1737645054706,-500.0,0.00017534,2]
[350129069,1737645054716,-698.63,0.00017534,2]
[350129070,1737645054726,-562.02,0.00017534,2]
[350129071,1737645054735,-891.18,0.00017534,2]
[350129072,1737645054744,-819.79,0.00017534,2]
[350129073,1737645054754,-2597.36,0.00017534,2]
[350129074,1737645054764,-2134.79,0.00017534,2]
[350129075,1737645054774,-500.0,0.00017534,2]
[350129076,1737645054784,-500.0,0.00017534,2]
[350129077,1737645054793,-1084.72,0.00017534,2]
[350129078,1737645054803,-844.37,0.00017534,2]
[350129079,1737645054817,-875.15,0.00017534,2]
[350129080,1737645054827,-560.99,0.00017534,2]
[350129081,1737645054837,-500.0,0.00017534,2]
[350129082,1737645054846,-1539.16,0.00017534,2]
[350129083,1737645054856,-3578.96,0.00017534,2]
[350129084,1737645054866,-961.42,0.00017534,2]
[350129085,1737645054876,-500.0,0.00017534,2]
[350129086,1737645054886,-490.09,0.00017534,2]
[350129087,1737645054896,-500.0,0.00017534,2]
[350129088,1737645054905,-500.0,0.00017534,2]
[350129089,1737645054915,-1081.57,0.00017534,2]
[350129090,1737645054925,-1292.3,0.00017534,2]
[350129091,1737645054935,-500.0,0.00017534,2]
[350129092,1737645054944,-1071.81,0.00017534,2]
[350129093,1737645054954,-942.02,0.00017534,2]
[350129094,1737645054963,-663.05,0.00017534,2]
[350129095,1737645054973,-571.59,0.00017534,2]
[350129096,1737645054982,-500.0,0.00017534,2]
[350129097,1737645054992,-860.73,0.00017534,2]
[350129098,1737645055001,-500.0,0.00017534,2]
[350129099,1737645055010,-500.0,0.00017534,2]
[350129100,1737645055020,-1013.61,0.00017534,2]
[350129101,1737645055029,-2194.45,0.00017534,2]
[350129102,1737645055039,-2177.45,0.00017534,2]
[350129103,1737645055049,-420.94420485,0.00017534,2]
[350129104,1737645055064,-1776.29,0.00017534,2]
[350129105,1737645055074,-500.0,0.00017534,2]
[350129106,1737645055087,-1994.1,0.00017534,2]
[350129107,1737645055096,-334.95015294,0.00017534,2]
[350129108,1737645055105,-568.36,0.00017534,2]
[350129109,1737645055117,-500.0,0.00017534,2]
[350129110,1737645055127,-500.0,0.00017534,2]
[350129111,1737645055137,-2026.27,0.00017534,2]
[350129112,1737645055146,-802.95,0.00017534,2]
[350129113,1737645055155,-500.0,0.00017534,2]
[350129114,1737645055164,-1138.65,0.00017534,2]
[350129115,1737645055174,-633.78,0.00017534,2]
[350129116,1737645055183,-2021.12,0.00017534,2]
[350129117,1737645055193,-2256.79,0.00017534,2]
[350129118,1737645055203,-926.7,0.00017534,2]
[350129119,1737645055213,-500.0,0.00017534,2]
[350129120,1737645055222,-647.06,0.00017534,2]
[350129121,1737645055231,-500.0,0.00017534,2]
[350129122,1737645055241,-500.0,0.00017534,2]
[350129123,1737645055250,-694.41,0.00017534,2]
[350129124,1737645055261,-1999.78,0.00017534,2]
[350129125,1737645055270,-1677.66,0.00017534,2]
[350129126,1737645055280,-1225.64,0.00017534,2]
[350129127,1737645055290,-620.21,0.00017534,2]
[350129128,1737645055299,-2256.93,0.00017534,2]
[350129129,1737645055313,-500.0,0.00017534,2]
[350129130,1737645055323,-500.0,0.00017534,2]
[350129131,1737645055333,-3498.12,0.00017534,2]
[350129132,1737645055343,-1145.96,0.00017534,2]
[350129133,1737645055352,-949.84,0.00017534,2]
[350129134,1737645055362,-1175.82,0.00017534,2]
[350129135,1737645055372,-500.0,0.00017534,2]
[350129136,1737645055382,-1697.68,0.00017534,2]
[350129137,1737645055392,-2367.62,0.00017534,2]
[350129138,1737645055401,-1190.26,0.00017534,2]
[350129139,1737645055411,-500.0,0.00017534,2]
[350129140,1737645055420,-941.79,0.00017534,2]
[350129141,1737645055430,-1015.53,0.00017534,2]
[350129142,1737645055439,-494.42107365,0.00017534,2]
[350129143,1737645055449,-500.0,0.00017534,2]
[350129144,1737645055458,-768.15,0.00017534,2]
[350129145,1737645055469,-2329.03,0.00017534,2]
[350129146,1737645055479,-1787.15,0.00017534,2]
[350129147,1737645055488,-500.0,0.00017534,2]
[350129148,1737645055499,-503.37,0.00017534,2]
[350129149,1737645055509,-947.65,0.00017534,2]
[350129150,1737645055518,-846.16,0.00017534,2]
[350129151,1737645055528,-500.0,0.00017534,2]
[350129152,1737645055537,-500.0,0.00017534,2]
[350129153,1737645055547,-667.14,0.00017534,2]
[350129154,1737645055560,-500.0,0.00017534,2]
[350129155,1737645055570,-641.82,0.00017534,2]
[350129156,1737645055579,-1623.82,0.00017534,2]
[350129157,1737645055589,-867.94,0.00017534,2]
[350129158,1737645055599,-891.94,0.00017534,2]
[350129159,1737645055609,-500.0,0.00017534,2]
[350129160,1737645055618,-500.0,0.00017534,2]
[350129161,1737645055628,-500.0,0.00017534,2]
[350129162,1737645055637,-500.0,0.00017534,2]
[350129163,1737645055647,-2335.77,0.00017534,2]
[350129164,1737645055657,-848.4,0.00017534,2]
[350129165,1737645055667,-1465.77,0.00017534,2]
[350129166,1737645055676,-867.64,0.00017534,2]
[350129167,1737645055686,-500.0,0.00017534,2]
[350129168,1737645055696,-500.0,0.00017534,2]
[350129169,1737645055705,-681.4,0.00017534,2]
[350129170,1737645055715,-500.0,0.00017534,2]
[350129171,1737645055725,-1257.3,0.00017534,2]
[350129172,1737645055734,-914.06,0.00017534,2]
[350129173,1737645055744,-500.0,0.00017534,2]
[350129174,1737645055754,-546.73,0.00017534,2]
[350129175,1737645055764,-592.48,0.00017534,2]
[350129176,1737645055773,-1167.46,0.00017534,2]
[350129177,1737645055784,-2691.81,0.00017534,2]
[350129178,1737645055794,-500.0,0.00017534,2]
[350129179,1737645055804,-2081.79,0.00017534,2]
[350129180,1737645055818,-500.0,0.00017534,2]
[350129181,1737645055827,-500.0,0.00017534,2]
[350129182,1737645055837,-961.82,0.00017534,2]
[350129183,1737645055847,-500.0,0.00017534,2]
[350129184,1737645055857,-172.75,0.00017572,2]
[350129185,1737645055866,-500.0,0.00017573,2]
[350129186,1737645055876,-673.0289804,0.00017579,2]
[350129187,1737645055885,-1196.38051738,0.0001759,2]
[350129188,1737645055894,-88199.75319665,0.00017608,2]
[350129189,1737645055904,-500.0,0.00017634,2]
[350129190,1737645055914,-222.76,0.00017689,2]
[350129191,1737645055923,-314.00615214,0.00017708,2]
[350129192,1737645055932,-500.0,0.0001771,2]
[350129193,1737645055942,-500.0,0.00017734,2]
[350129194,1737645055951,-1196.38051738,0.00017762,2]
[350129195,1737645055961,-673.0289804,0.00017786,2]
[350129196,1737645055971,-2500.0,0.000178,6]
[350129197,1737645055981,-964.26,0.00017807,2]
[350129198,1737645055991,-849.38,0.00017807,2]
[350129199,1737645056001,-1962.43,0.00017807,2]
[350129200,1737645056011,-500.0,0.00017807,2]
[350129201,1737645056021,-841.35,0.00017807,2]
[350129202,1737645056031,-1238.96,0.00017807,2]
[350129203,1737645056040,-1489.33,0.00017807,2]
[350129204,1737645056050,-500.0,0.00017807,2]
[350129205,1737645056063,-1000.0,0.00017807,2]
[350129206,1737645056073,-1181.81,0.00017807,2]
[350129207,1737645056086,-517.92,0.00017807,2]
[350129208,1737645056104,-1401.97,0.00017807,2]
[350129209,1737645056113,-1626.6,0.00017807,2]
[350129210,1737645056123,-500.0,0.00017808,2]
[350129211,1737645056132,-500.0,0.00017808,2]
[350129212,1737645056143,-500.0,0.00017808,2]
[350129213,1737645056152,-500.0,0.00017808,2]
[350129214,1737645056162,-500.0,0.00017808,2]
[350129215,1737645056171,-500.0,0.00017808,2]
[350129216,1737645056181,-500.0,0.00017808,2]
[350129217,1737645056192,-500.0,0.00017808,2]
[350129218,1737645056202,-500.0,0.00017808,2]
[350129219,1737645056212,-500.0,0.00017808,2]
[350129220,1737645056221,-500.0,0.00017808,2]
[350129221,1737645056231,-402.9,0.00017808,2]
[350129222,1737645056240,-728.78,0.00017808,2]
[350129223,1737645056250,-500.0,0.00017808,2]
[350129224,1737645056259,-500.0,0.00017808,2]
[350129225,1737645056269,-500.0,0.00017808,2]
[350129226,1737645056279,-500.0,0.00017808,2]
[350129227,1737645056288,-500.0,0.00017808,2]
[350129228,1737645056298,-566.52469851,0.00017808,2]
[350129229,1737645056311,-500.0,0.00017808,2]
[350129230,1737645056321,-561.4,0.00017808,2]
[350129231,1737645056332,-500.0,0.00017808,2]
[350129232,1737645056341,-500.0,0.00017808,2]
[350129233,1737645056351,-323.76095717,0.00017808,2]
[350129234,1737645056361,-500.0,0.00017808,2]
[350129235,1737645056372,-500.0,0.00017808,2]
[350129236,1737645056382,-770.38,0.00017808,2]
[350129237,1737645056391,-500.0,0.00017808,2]
[350129238,1737645056400,-553.93,0.00017808,2]
[350129239,1737645056410,-816.19,0.00017808,2]
[350129240,1737645056419,-538.50533069,0.00017808,2]
[350129241,1737645056428,-500.0,0.00017808,2]
[350129242,1737645056437,-500.0,0.00017808,2]
[350129243,1737645056446,-500.0,0.00017808,2]
[350129244,1737645056456,-500.0,0.00017808,2]
[350129245,1737645056465,-500.0,0.00017808,2]
[350129246,1737645056474,-500.0,0.00017808,2]
[350129247,1737645056484,-646.57572134,0.00017808,2]
[350129248,1737645056493,-500.0,0.00017808,2]
[350129249,1737645056502,-500.0,0.00017808,2]
[350129250,1737645056512,-533.86,0.00017808,2]
[350129251,1737645056521,-500.0,0.00017808,2]
[350129252,1737645056530,-500.0,0.00017808,2]
[350129253,1737645056539,-500.0,0.00017808,2]
[350129254,1737645056549,-500.0,0.00017808,2]
[350129255,1737645056560,-665.01,0.00017808,2]
[350129256,1737645056570,-304.94303227,0.00017808,2]
[350129257,1737645056579,-591.449939,0.00017808,2]
[350129258,1737645056589,-598.39,0.00017808,2]
[350129259,1737645056598,-500.0,0.00017808,2]
[350129260,1737645056607,-666.93,0.00017808,2]
[350129261,1737645056616,-500.0,0.00017808,2]
[350129262,1737645056626,-665.125062,0.00017808,2]
[350129263,1737645056635,-611.43,0.00017808,2]
[350129264,1737645056644,-500.0,0.00017808,2]
[350129265,1737645056654,-500.0,0.00017808,2]
[350129266,1737645056664,-500.0,0.00017808,2]
[350129267,1737645056676,-500.0,0.00017808,2]
[350129268,1737645056685,-500.0,0.00017808,2]
[350129269,1737645056695,-500.0,0.00017808,2]
[350129270,1737645056704,-500.0,0.00017808,2]
[350129271,1737645056714,-645.07,0.00017808,2]
[350129272,1737645056724,-625.03,0.00017808,2]
[350129273,1737645056733,-500.0,0.00017808,2]
[350129274,1737645056743,-574.7,0.00017808,2]
[350129275,1737645056752,-500.0,0.00017808,2]
[350129276,1737645056762,-665.43,0.00017808,2]
[350129277,1737645056771,-424.0845248,0.00017808,2]
[350129278,1737645056780,-500.0,0.00017808,2]
[350129279,1737645056790,-587.36,0.00017808,2]
[350129280,1737645056799,-643.73,0.00017808,2]
[350129281,1737645056811,-512.19,0.00017808,2]
[350129282,1737645056821,-500.0,0.00017808,2]
[350129283,1737645056831,-661.94,0.00017808,2]
[350129284,1737645056840,-667.89,0.00017808,2]
[350129285,1737645056850,-539.11,0.00017808,2]
[350129286,1737645056859,-624.02,0.00017808,2]
[350129287,1737645056869,-500.0,0.00017808,2]
[350129288,1737645056878,-500.0,0.00017808,2]
[350129289,1737645056888,-500.0,0.00017808,2]
[350129290,1737645057029,-652.9,0.00017808,2]
[350129291,1737645057039,-566.04,0.00017808,2]
[350129292,1737645057049,-500.0,0.00017808,2]
[350129293,1737645057062,-618.01,0.00017808,2]
[350129294,1737645057072,-607.91,0.00017808,2]
[350129295,1737645057083,-530.48,0.00017808,2]
[350129296,1737645057095,-500.0,0.00017808,2]
[350129297,1737645057105,-500.0,0.00017808,2]
[350129298,1737645057115,-500.0,0.00017808,2]
[350129299,1737645057124,-690.5,0.00017808,2]
[350129300,1737645057135,-731.93,0.00017808,2]
[350129301,1737645057144,-2045.28843294,0.00017808,2]
[350129303,1737645057351,-90.92156706,0.00017808,2]
[350129304,1737645057361,-500.0,0.00017808,2]
[350129305,1737645057371,-719.7,0.00017808,2]
[350129306,1737645057381,-1077.18,0.00017808,2]
[350129307,1737645057390,-500.0,0.00017808,2]
[350129308,1737645057400,-689.78,0.00017808,2]
[350129309,1737645057410,-2051.15,0.00017808,2]
[350129310,1737645057419,-500.0,0.00017808,2]
[350129311,1737645057429,-500.0,0.00017808,2]
[350129312,1737645057439,-636.7,0.00017808,2]
[350129313,1737645057448,-767.11,0.00017808,2]
[350129314,1737645057458,-1199.19,0.00017808,2]
[350129315,1737645057468,-500.0,0.00017808,2]
[350129316,1737645057478,-500.0,0.00017808,2]
[350129317,1737645057487,-500.0,0.00017808,2]
[350129318,1737645057497,-2308.51,0.00017808,2]
[350129319,1737645057507,-500.0,0.00017808,2]
[350129320,1737645057517,-698.63,0.00017808,2]
[350129321,1737645057526,-562.02,0.00017808,2]
[350129322,1737645057536,-891.18,0.00017808,2]
[350129323,1737645057546,-819.79,0.00017808,2]
[350129324,1737645057555,-2597.36,0.00017808,2]
[350129325,1737645057570,-2134.79,0.00017808,2]
[350129326,1737645057581,-500.0,0.00017808,2]
[350129327,1737645057591,-500.0,0.00017808,2]
[350129328,1737645057602,-1084.72,0.00017808,2]
[350129329,1737645057611,-844.37,0.00017808,2]
[350129330,1737645057621,-875.15,0.00017808,2]
[350129331,1737645057631,-560.99,0.00017808,2]
[350129332,1737645057641,-500.0,0.00017808,2]
[350129333,1737645057650,-1539.16,0.00017808,2]
[350129334,1737645057660,-3578.96,0.00017808,2]
[350129335,1737645057671,-961.42,0.00017808,2]
[350129336,1737645057680,-500.0,0.00017808,2]
[350129337,1737645057689,-500.0,0.00017808,2]
[350129338,1737645057699,-500.0,0.00017808,2]
[350129339,1737645057709,-1081.57,0.00017808,2]
[350129340,1737645057718,-1292.3,0.00017808,2]
[350129341,1737645057728,-500.0,0.00017808,2]
[350129342,1737645057737,-1071.81,0.00017808,2]
[350129343,1737645057747,-942.02,0.00017808,2]
[350129344,1737645057757,-663.05,0.00017808,2]
[350129345,1737645057766,-571.59,0.00017808,2]
[350129346,1737645057776,-500.0,0.00017808,2]
[350129347,1737645057786,-860.73,0.00017808,2]
[350129348,1737645057796,-500.0,0.00017808,2]
[350129349,1737645057805,-500.0,0.00017808,2]
[350129350,1737645057819,-1013.61,0.00017808,2]
[350129351,1737645057829,-2194.45,0.00017808,2]
[350129352,1737645057839,-2177.45,0.00017808,2]
[350129353,1737645057848,-1776.29,0.00017808,2]
[350129354,1737645057858,-500.0,0.00017808,2]
[350129355,1737645057868,-1994.1,0.00017808,2]
[350129356,1737645057878,-568.36,0.00017808,2]
[350129357,1737645057887,-500.0,0.00017808,2]
[350129358,1737645057897,-500.0,0.00017808,2]
[350129359,1737645057907,-2026.27,0.00017808,2]
[350129360,1737645057917,-802.95,0.00017808,2]
[350129361,1737645057926,-500.0,0.00017808,2]
[350129362,1737645057935,-1138.65,0.00017808,2]
[350129363,1737645057945,-633.78,0.00017808,2]
[350129364,1737645057955,-2021.12,0.00017808,2]
[350129365,1737645057965,-2256.79,0.00017808,2]
[350129366,1737645057974,-926.7,0.00017808,2]
[350129367,1737645057984,-500.0,0.00017808,2]
[350129368,1737645057994,-647.06,0.00017808,2]
[350129369,1737645058004,-557.33764225,0.00017808,2]
[350129370,1737645058014,-500.0,0.00017808,2]
[350129371,1737645058024,-694.41,0.00017808,2]
[350129372,1737645058034,-1999.78,0.00017808,2]
[350129373,1737645058044,-1677.66,0.00017808,2]
[350129374,1737645058054,-1225.64,0.00017808,2]
[350129375,1737645058069,-620.21,0.00017808,2]
[350129376,1737645058081,-2256.93,0.00017808,2]
[350129377,1737645058096,-500.0,0.00017808,2]
[350129378,1737645058106,-500.0,0.00017808,2]
[350129379,1737645058116,-3498.12,0.00017808,2]